fUSD/lending_fUSD_20240321
["ID","MTS","AMOUNT","RATE_DAILY","PERIOD"]
[319828365,1710982244451,-500.0,0.00024657,2]
[319828366,1710982244461,-742.33,0.00024657,2]
[319828367,1710982244471,-500.0,0.00024657,2]
[319828368,1710982244482,-500.77953602,0.00024657,2]
[319828369,1710982244492,-500.0,0.00024657,2]
[319828370,1710982244501,-500.0,0.00024657,2]
[319828371,1710982244511,-500.0,0.00024657,2]
[319828372,1710982244521,-500.94214636,0.00024657,2]
[319828373,1710982244531,-500.0,0.00024657,2]
[319828374,1710982244540,-500.0,0.00024657,2]
[319828375,1710982244550,-500.0,0.00024657,2]
[319828376,1710982244559,-500.0,0.00024657,2]
[319828377,1710982244571,-1331.17,0.00024657,2]
[319828378,1710982244581,-500.0,0.00024657,2]
[319828379,1710982244592,-500.0,0.00024657,2]
[319828380,1710982244603,-500.0,0.00024657,2]
[319828381,1710982244613,-500.0,0.00024657,2]
[319828382,1710982244623,-500.0,0.00024657,2]
[319828383,1710982244632,-500.0,0.00024657,2]
[319828384,1710982244645,-500.0,0.00024657,2]
[319828385,1710982244656,-500.62824814,0.00024657,2]
[319828386,1710982244665,-500.0,0.00024657,2]
[319828387,1710982244674,-619.26,0.00024657,2]
[319828388,1710982244685,-834.09,0.00024657,2]
[319828389,1710982244695,-937.81,0.00024657,2]
[319828390,1710982244704,-500.0,0.00024657,2]
[319828391,1710982244714,-1959.38,0.00024657,2]
[319828392,1710982244727,-500.0,0.00024657,2]
[319828393,1710982244738,-500.0,0.00024657,2]
[319828394,1710982244748,-589.97,0.00024657,2]
[319828395,1710982244758,-500.0,0.00024657,2]
[319828396,1710982244767,-500.0,0.00024657,2]
[319828397,1710982244776,-500.0,0.00024657,2]
[319828398,1710982244786,-500.0,0.00024657,2]
[319828399,1710982244795,-699.02,0.00024657,2]
[319828400,1710982244804,-659.75,0.00024657,2]
[319828401,1710982244815,-500.0,0.00024657,2]
[319828402,1710982244824,-500.0,0.00024657,2]
[319828403,1710982244834,-1086.13,0.00024657,2]
[319828404,1710982244843,-500.0,0.00024657,2]
[319828405,1710982244852,-500.0,0.00024657,2]
[319828406,1710982244861,-500.0,0.00024657,2]
[319828407,1710982244870,-500.0,0.00024657,2]
[319828408,1710982244879,-620.8,0.00024657,2]
[319828409,1710982244888,-500.0,0.00024657,2]
[319828410,1710982244897,-569.05650515,0.00024657,2]
[319828411,1710982244907,-797.74,0.00024657,2]
[319828412,1710982244917,-500.0,0.00024657,2]
[319828413,1710982244927,-500.0,0.00024657,2]
[319828414,1710982244937,-500.0,0.00024657,2]
[319828415,1710982244948,-3645.99,0.00024657,2]
[319828416,1710982244958,-893.47,0.00024657,2]
[319828417,1710982244967,-500.0,0.00024657,2]
[319828418,1710982244977,-2788.38,0.00024657,2]
[319828419,1710982244987,-326.45,0.00024657,2]
[319828420,1710982244997,-500.0,0.00024657,2]
[319828421,1710982245008,-500.0,0.00024657,2]
[319828422,1710982245019,-783.79,0.00024657,2]
[319828423,1710982245028,-2127.85,0.00024657,2]
[319828424,1710982245037,-624.74,0.00024657,2]
[319828425,1710982245046,-500.0,0.00024657,2]
[319828426,1710982245055,-500.0,0.00024657,2]
[319828427,1710982245066,-500.0,0.00024657,2]
[319828428,1710982245075,-500.0,0.00024657,2]
[319828429,1710982245085,-500.0,0.00024657,2]
[319828430,1710982245095,-500.0,0.00024657,2]
[319828431,1710982245105,-500.0,0.00024657,2]
[319828432,1710982245115,-500.0,0.00024657,2]
[319828433,1710982245126,-500.0,0.00024657,2]
[319828434,1710982245136,-871.07,0.00024657,2]
[319828435,1710982245146,-662.98,0.00024657,2]
[319828436,1710982245155,-500.0,0.00024657,2]
[319828437,1710982245165,-869.48,0.00024657,2]
[319828438,1710982245175,-500.0,0.00024657,2]
[319828439,1710982245184,-573.398586,0.00024657,2]
[319828440,1710982245193,-1709.55,0.00024657,2]
[319828441,1710982245203,-150.0,0.00024657,2]
[319828442,1710982245212,-500.0,0.00024657,2]
[319828443,1710982245222,-1252.85,0.00024657,2]
[319828444,1710982245231,-500.0,0.00024657,2]
[319828445,1710982245241,-500.0,0.00024657,2]
[319828446,1710982245250,-500.0,0.00024657,2]
[319828447,1710982245262,-500.0,0.00024657,2]
[319828448,1710982245271,-500.0,0.00024657,2]
[319828449,1710982245282,-500.0,0.00024657,2]
[319828450,1710982245292,-633.95,0.00024657,2]
[319828451,1710982245301,-500.0,0.00024657,2]
[319828452,1710982245314,-500.0,0.00024657,2]
[319828453,1710982245324,-978.46,0.00024657,2]
[319828454,1710982245334,-500.0,0.00024657,2]
[319828455,1710982245343,-500.0,0.00024657,2]
[319828456,1710982245353,-500.0,0.00024657,2]
[319828457,1710982245363,-500.0,0.00024657,2]
[319828458,1710982245372,-500.0,0.00024657,2]
[319828459,1710982245381,-1113.23,0.00024657,2]
[319828460,1710982245391,-500.0,0.00024657,2]
[319828461,1710982245400,-1102.6,0.00024657,2]
[319828462,1710982245410,-500.0,0.00024657,2]
[319828463,1710982245419,-513.22,0.00024657,2]
[319828464,1710982245429,-1005.57,0.00024657,2]
[319828465,1710982245439,-647.88,0.00024657,2]
[319828466,1710982245449,-500.0,0.00024657,2]
[319828467,1710982245458,-500.0,0.00024657,2]
[319828468,1710982245467,-2014.14,0.00024657,2]
[319828469,1710982245476,-500.0,0.00024657,2]
[319828470,1710982245486,-500.0,0.00024657,2]
[319828471,1710982245495,-4360.5,0.00024657,2]
[319828472,1710982245504,-500.0,0.00024657,2]
[319828473,1710982245514,-500.0,0.00024657,2]
[319828474,1710982245524,-500.0,0.00024657,2]
[319828475,1710982245533,-500.0,0.00024657,2]
[319828476,1710982245544,-812.49,0.00024657,2]
[319828477,1710982245553,-501.22749077,0.00024657,2]
[319828478,1710982245564,-500.0,0.00024657,2]
[319828479,1710982245573,-500.0,0.00024657,2]
[319828480,1710982245582,-500.0,0.00024657,2]
[319828481,1710982245591,-500.0,0.00024657,2]
[319828482,1710982245601,-500.0,0.00024657,2]
[319828483,1710982245610,-500.0,0.00024657,2]
[319828484,1710982245619,-500.0,0.00024657,2]
[319828485,1710982245629,-707.5,0.00024657,2]
[319828486,1710982245639,-500.0,0.00024657,2]
[319828487,1710982245649,-500.0,0.00024657,2]
[319828488,1710982245658,-500.0,0.00024657,2]
[319828489,1710982245669,-500.0,0.00024657,2]
[319828490,1710982245679,-500.0,0.00024657,2]
[319828491,1710982245688,-1102.49,0.00024657,2]
[319828492,1710982245697,-500.0,0.00024657,2]
[319828493,1710982245706,-527.0,0.00024657,2]
[319828494,1710982245717,-500.0,0.00024657,2]
[319828495,1710982245726,-834.55,0.00024657,2]
[319828496,1710982245735,-500.0,0.00024657,2]
[319828497,1710982245745,-706.06,0.00024657,2]
[319828498,1710982245754,-500.0,0.00024657,2]
[319828499,1710982245763,-500.0,0.00024657,2]
[319828500,1710982245773,-2632.84,0.00024657,2]
[319828501,1710982245782,-741.4,0.00024657,2]
[319828502,1710982245790,-500.0,0.00024657,2]
[319828503,1710982245800,-500.0,0.00024657,2]
[319828504,1710982245809,-500.0,0.00024657,2]
[319828505,1710982245820,-976.09,0.00024657,2]
[319828506,1710982245829,-500.0,0.00024657,2]
[319828507,1710982245838,-1213.46,0.00024657,2]
[319828508,1710982245847,-500.0,0.00024657,2]
[319828509,1710982245857,-833.8,0.00024657,2]
[319828510,1710982245866,-500.0,0.00024657,2]
[319828511,1710982245875,-500.0,0.00024657,2]
[319828512,1710982245884,-500.0,0.00024657,2]
[319828513,1710982245893,-500.0,0.00024657,2]
[319828514,1710982245902,-572.63,0.00024657,2]
[319828515,1710982245911,-2473.41,0.00024657,2]
[319828516,1710982245920,-500.0,0.00024657,2]
[319828517,1710982245929,-500.0,0.00024657,2]
[319828518,1710982245939,-6062.16,0.00024657,2]
[319828519,1710982245948,-500.0,0.00024657,2]
[319828520,1710982245958,-500.0,0.00024657,2]
[319828521,1710982245968,-500.0,0.00024657,2]
[319828522,1710982245978,-500.0,0.00024657,2]
[319828523,1710982245986,-2091.96,0.00024657,2]
[319828524,1710982245996,-500.0,0.00024657,2]
[319828525,1710982246004,-500.0,0.00024657,2]
[319828526,1710982246014,-665.91,0.00024657,2]
[319828527,1710982246023,-500.0,0.00024657,2]
[319828528,1710982246032,-833.23,0.00024657,2]
[319828529,1710982246041,-500.0,0.00024657,2]
[319828530,1710982246050,-500.0,0.00024657,2]
[319828531,1710982246061,-4615.66,0.00024657,2]
[319828532,1710982246072,-2261.06,0.00024657,2]
[319828533,1710982246081,-500.0,0.00024657,2]
[319828534,1710982246090,-5275.73,0.00024657,2]
[319828535,1710982246099,-500.99649802,0.00024657,2]
[319828536,1710982246109,-500.0,0.00024657,2]
[319828537,1710982246121,-500.0,0.00024657,2]
[319828538,1710982246129,-827.04,0.00024657,2]
[319828539,1710982246139,-2649.42,0.00024657,2]
[319828540,1710982246148,-500.0,0.00024657,2]
[319828541,1710982246157,-892.63,0.00024657,2]
[319828542,1710982246168,-1093.73,0.00024657,2]
[319828543,1710982246177,-3614.99,0.00024657,2]
[319828544,1710982246186,-1299.67,0.00024657,2]
[319828545,1710982246196,-500.0,0.00024657,2]
[319828546,1710982246205,-300.0,0.00024657,2]
[319828547,1710982246215,-1131.11,0.00024657,2]
[319828548,1710982246224,-500.0,0.00024657,2]
[319828549,1710982246233,-500.0,0.00024657,2]
[319828550,1710982246242,-500.0,0.00024657,2]
[319828551,1710982246251,-626.86,0.00024657,2]
[319828552,1710982246260,-500.0,0.00024657,2]
[319828553,1710982246269,-500.0,0.00024657,2]
[319828554,1710982246278,-500.0,0.00024657,2]
[319828555,1710982246287,-500.0,0.00024657,2]
[319828556,1710982246296,-691.81,0.00024657,2]
[319828557,1710982246305,-500.0,0.00024657,2]
[319828558,1710982246316,-500.0,0.00024657,2]
[319828559,1710982246326,-2224.1,0.00024657,2]
[319828560,1710982246334,-500.0,0.00024657,2]
[319828561,1710982246343,-500.0,0.00024657,2]
[319828562,1710982246353,-668.48,0.00024657,2]
[319828563,1710982246362,-830.5,0.00024657,2]
[319828564,1710982246372,-500.0,0.00024657,2]
[319828565,1710982246381,-2203.94,0.00024657,2]
[319828566,1710982246390,-2070.11,0.00024657,2]
[319828567,1710982246402,-850.65,0.00024657,2]
[319828568,1710982246411,-500.0,0.00024657,2]
[319828569,1710982246421,-500.0,0.00024657,2]
[319828570,1710982246432,-500.0,0.00024657,2]
[319828571,1710982246441,-3707.57,0.00024657,2]
[319828572,1710982246451,-500.0,0.00024657,2]
[319828573,1710982246460,-500.0,0.00024657,2]
[319828574,1710982246469,-500.0,0.00024657,2]
[319828575,1710982246478,-500.0,0.00024657,2]
[319828576,1710982246487,-500.0,0.00024657,2]
[319828577,1710982246497,-500.0,0.00024657,2]
[319828578,1710982246506,-500.0,0.00024657,2]
[319828579,1710982246516,-11529.49,0.00024657,2]
[319828580,1710982246526,-1239.96,0.00024657,2]
[319828581,1710982246535,-500.0,0.00024657,2]
[319828582,1710982246544,-9045.01,0.00024657,2]
[319828583,1710982246554,-500.0,0.00024657,2]
[319828584,1710982246563,-500.0,0.00024657,2]
[319828585,1710982246574,-704.04,0.00024657,2]
[319828586,1710982246582,-500.0,0.00024657,2]
[319828587,1710982246591,-1944.71,0.00024657,2]
[319828588,1710982246600,-578.37,0.00024657,2]
[319828589,1710982246610,-500.0,0.00024657,2]
[319828590,1710982246623,-5694.97,0.00024657,2]
[319828591,1710982246637,-500.0,0.00024657,2]
[319828592,1710982246651,-999.1,0.00024657,2]
[319828595,1710982246663,-622.73,0.00024657,2]
[319828596,1710982246677,-500.0,0.00024657,2]
[319828597,1710982246688,-500.0,0.00024657,2]
[319828598,1710982246701,-500.0,0.00024657,2]
[319828599,1710982246714,-2146.36,0.00024657,2]
[319828600,1710982246726,-2295.69,0.00024657,2]
[319828601,1710982246740,-407.92,0.00024657,2]
[319828602,1710982246753,-500.0,0.00024657,2]
[319828603,1710982246767,-500.0,0.00024657,2]
[319828604,1710982246780,-500.0,0.00024657,2]
[319828605,1710982246792,-500.0,0.00024657,2]
[319828606,1710982246804,-500.0,0.00024657,2]
[319828607,1710982246818,-500.0,0.00024657,2]
[319828608,1710982246831,-500.0,0.00024657,2]
[319828609,1710982246846,-500.0,0.00024657,2]
[319828610,1710982246857,-500.0,0.00024657,2]
[319828611,1710982246869,-500.0,0.00024657,2]
[319828612,1710982246881,-500.0,0.00024657,2]
[319828613,1710982246894,-500.0,0.00024657,2]
[319828614,1710982246906,-500.0,0.00024657,2]
[319828615,1710982246916,-500.0,0.00024657,2]
[319828616,1710982246930,-1936.63,0.00024657,2]
[319828617,1710982246943,-4404.92,0.00024657,2]
[319828618,1710982246956,-500.0,0.00024657,2]
[319828619,1710982246971,-500.0,0.00024657,2]
[319828620,1710982246983,-500.0,0.00024657,2]
[319828621,1710982246995,-500.0,0.00024657,2]
[319828622,1710982247008,-500.0,0.00024657,2]
[319828623,1710982247020,-500.0,0.00024657,2]
[319828624,1710982247032,-2056.72,0.00024657,2]
[319828625,1710982247045,-500.0,0.00024657,2]
[319828626,1710982247061,-500.0,0.00024657,2]
[319828627,1710982247076,-500.0,0.00024657,2]
[319828628,1710982247090,-500.0,0.00024657,2]
[319828629,1710982247103,-500.0,0.00024657,2]
[319828630,1710982247116,-500.0,0.00024657,2]
[319828631,1710982247126,-444.36761041,0.00024657,2]
[319828632,1710982247136,-2278.01,0.00024657,2]
[319828633,1710982247146,-552.0,0.00024657,2]
[319828634,1710982247159,-1852.98,0.00024657,2]
[319828635,1710982247172,-500.0,0.00024657,2]
[319828636,1710982247184,-587.59,0.00024657,2]
[319828637,1710982247195,-500.0,0.00024657,2]
[319828638,1710982247208,-244.43466488,0.00024658,2]
[319828639,1710982247221,-1000.0,0.00024658,2]
[319828640,1710982247232,-1000.0,0.00024658,2]
[319828641,1710982247242,-1000.0,0.00024658,2]
[319828642,1710982247252,-1000.0,0.00024658,2]
[319828643,1710982247264,-1000.0,0.00024658,2]
[319828644,1710982247275,-1000.0,0.00024658,2]
[319828645,1710982247285,-1000.0,0.00024658,2]
[319828646,1710982247296,-1000.0,0.00024658,2]
[319828647,1710982247307,-1000.0,0.00024658,2]
[319828648,1710982247318,-1000.0,0.00024658,2]
[319828649,1710982247329,-1000.0,0.00024658,2]
[319828650,1710982247339,-1000.0,0.00024658,2]
[319828651,1710982247350,-1000.0,0.00024658,2]
[319828652,1710982247361,-1000.0,0.00024658,2]
[319828653,1710982247373,-1000.0,0.00024658,2]
[319828654,1710982247390,-1000.0,0.00024658,2]
[319828655,1710982247402,-1000.0,0.00024658,2]
[319828656,1710982247414,-1000.0,0.00024658,2]
[319828657,1710982247427,-1000.0,0.00024658,2]
[319828658,1710982247439,-1000.0,0.00024658,2]
[319828659,1710982247450,-1000.0,0.00024658,2]
[319828660,1710982247462,-1074.0,0.00024658,2]
[319828661,1710982247474,-500.0,0.00024658,2]
[319828662,1710982247486,-252.16,0.00024658,10]
[319828663,1710982247499,-6618.21,0.00024659,2]
[319828664,1710982247510,-150.0,0.0002467,2]
[319828665,1710982247522,-432.12,0.00024677,2]
[319828666,1710982247534,-762.98909309,0.00024709,2]
[319828667,1710982247545,-500.0,0.00024727,2]
[319828668,1710982247557,-7797.97262076,0.00024731,2]
[319828669,1710982247569,-150.0,0.00024782,2]
[319828670,1710982247580,-150.79,0.00024797,2]
[319828671,1710982247591,-793.25435,0.00024804,2]
[319828672,1710982247602,-150.0,0.00024814,2]
[319828673,1710982247615,-155.0,0.00024826,2]
[319828674,1710982247627,-699.3679182,0.00024827,2]
[319828675,1710982247644,-226656.90934262,0.00024827,2]
[319828676,1710982247657,-500.0,0.00024828,2]
[319828677,1710982247679,-283.15853647,0.00024831,2]
[319828678,1710982247691,-689.59681358,0.00024831,2]
[319828679,1710982247703,-2922.05079168,0.00024831,2]
[319828680,1710982247714,-300.0,0.00024832,2]
[319828681,1710982247725,-300.0,0.00024832,2]
[319828682,1710982247738,-150.0,0.00024832,2]
[319828683,1710982247752,-150.0,0.00024832,2]
[319828684,1710982247764,-300.0,0.00024832,2]
[319828685,1710982247776,-161.14,0.00024832,2]
[319828686,1710982247789,-161.14,0.00024832,2]
[319828687,1710982247801,-150.0,0.00024832,2]
[319828688,1710982247813,-150.0,0.00024832,2]
[319828689,1710982247827,-161.14,0.00024832,2]
[319828690,1710982247840,-830.2,0.00024832,2]
[319828691,1710982247851,-161.14,0.00024832,2]
[319828692,1710982247863,-150.0,0.00024832,2]
[319828693,1710982247874,-150.0,0.00024832,2]
[319828694,1710982247886,-415.1,0.00024832,2]
[319828695,1710982247898,-1033.84,0.00024832,2]
[319828696,1710982247911,-516.92,0.00024832,2]
[319828697,1710982247922,-414.91,0.00024832,2]
[319828698,1710982247934,-830.2,0.00024832,2]
[319828699,1710982247945,-415.1,0.00024832,2]
[319828700,1710982247957,-1033.84,0.00024832,2]
[319828701,1710982247968,-415.1,0.00024832,2]
[319828702,1710982247979,-585.61,0.00024832,2]
[319828703,1710982247989,-830.2,0.00024832,2]
[319828704,1710982248001,-415.1,0.00024832,2]
[319828705,1710982248012,-730.41,0.00024832,2]
[319828706,1710982248024,-150.0,0.00024845,2]
[319828707,1710982248036,-150.0,0.00024846,2]
[319828708,1710982248047,-779.65470014,0.00024848,2]
[319828709,1710982248058,-150.0,0.00024849,2]
[319828710,1710982248071,-207.84684528,0.0002485,2]
[319828711,1710982248081,-150.0,0.00024855,2]
[319828712,1710982248092,-150.0,0.00024858,2]
[319828713,1710982248103,-415.1,0.00024876,2]
[319828714,1710982248114,-832.55,0.00024876,2]
[319828715,1710982248124,-415.1,0.00024876,2]
[319828716,1710982248135,-696.94,0.00024876,2]
[319828717,1710982248146,-346.93,0.00024876,2]
[319828718,1710982248157,-346.93,0.00024876,2]
[319828719,1710982248168,-346.93,0.00024876,2]
[319828720,1710982248179,-346.93,0.00024876,2]
[319828721,1710982248190,-677.27,0.00024876,2]
[319828722,1710982248202,-346.93,0.00024876,2]
[319828723,1710982248212,-346.93,0.00024876,2]
[319828724,1710982248223,-46018.25314343,0.00024879,2]
[319828725,1710982248234,-150.45424075,0.000249,2]
[319828726,1710982248244,-150.45424042,0.000249,2]
[319828727,1710982248255,-150.45424042,0.000249,2]
[319828728,1710982248266,-150.45424042,0.000249,2]
[319828729,1710982248277,-2905.04500279,0.000249,2]
[319828730,1710982248288,-2905.04500277,0.000249,2]
[319828731,1710982248298,-2905.04500277,0.000249,2]
[319828732,1710982248309,-2905.04500277,0.000249,2]
[319828733,1710982248321,-2905.04500277,0.000249,2]
[319828734,1710982248331,-2905.04500277,0.000249,2]
[319828735,1710982248343,-2905.04500277,0.000249,2]
[319828736,1710982248354,-2905.04500277,0.000249,2]
[319828737,1710982248364,-2905.04500277,0.000249,2]
[319828738,1710982248375,-2905.04500277,0.000249,2]
[319828739,1710982248386,-2905.04500277,0.000249,2]
[319828740,1710982248397,-2905.04500277,0.000249,2]
[319828741,1710982248408,-2905.04500277,0.000249,2]
[319828742,1710982248427,-2905.04500277,0.000249,2]
[319828743,1710982248443,-2905.04500277,0.000249,2]
[319828744,1710982248457,-2905.04500277,0.000249,2]
[319828745,1710982248470,-2905.04500277,0.000249,2]
[319828746,1710982248482,-150.0,0.00024907,2]
[319828747,1710982248495,-150.0,0.00024907,2]
[319828748,1710982248507,-567.88,0.00024917,2]
[319828749,1710982248518,-150.0,0.0002492,2]
[319828750,1710982248530,-172466.55912369,0.0002492,2]
[319828751,1710982248542,-769.55,0.00024931,2]
[319828752,1710982248555,-593.28,0.00024931,2]
[319828753,1710982248568,-500.0,0.00024931,2]
[319828754,1710982248581,-500.0,0.00024931,2]
[319828755,1710982248593,-500.0,0.00024931,2]
[319828756,1710982248605,-1564.57,0.00024931,2]
[319828757,1710982248617,-500.0,0.00024931,2]
[319828758,1710982248629,-500.0,0.00024931,2]
[319828759,1710982248641,-500.0,0.00024931,2]
[319828760,1710982248653,-500.0,0.00024931,2]
[319828761,1710982248665,-505.69,0.00024931,2]
[319828762,1710982248678,-500.0,0.00024931,2]
[319828763,1710982248691,-1074.8,0.00024931,2]
[319828764,1710982248703,-500.0,0.00024931,2]
[319828765,1710982248715,-500.0,0.00024931,2]
[319828766,1710982248729,-500.0,0.00024931,2]
[319828767,1710982248741,-500.0,0.00024931,2]
[319828768,1710982248753,-500.0,0.00024931,2]
[319828769,1710982248764,-794.33,0.00024931,2]
[319828770,1710982248777,-500.0,0.00024931,2]
[319828771,1710982248789,-500.0,0.00024931,2]
[319828772,1710982248801,-500.0,0.00024931,2]
[319828773,1710982248813,-500.0,0.00024931,2]
[319828774,1710982248825,-500.0,0.00024931,2]
[319828775,1710982248836,-500.0,0.00024931,2]
[319828776,1710982248847,-500.0,0.00024931,2]
[319828777,1710982248858,-500.0,0.00024931,2]
[319828778,1710982248869,-500.0,0.00024931,2]
[319828779,1710982248881,-500.0,0.00024931,2]
[319828780,1710982248891,-500.0,0.00024931,2]
[319828781,1710982248902,-500.0,0.00024931,2]
[319828782,1710982248913,-500.0,0.00024931,2]
[319828783,1710982248924,-352.62215893,0.00024931,2]
[319828784,1710982248935,-500.0,0.00024931,2]
[319828785,1710982248945,-500.0,0.00024931,2]
[319828786,1710982248956,-500.0,0.00024931,2]
[319828787,1710982248967,-500.0,0.00024931,2]
[319828788,1710982248977,-500.0,0.00024931,2]
[319828789,1710982248988,-500.0,0.00024931,2]
[319828790,1710982248999,-500.0,0.00024931,2]
[319828791,1710982249011,-500.0,0.00024931,2]
[319828792,1710982249022,-500.0,0.00024931,2]
[319828793,1710982249033,-500.0,0.00024931,2]
[319828794,1710982249044,-1089.91,0.00024931,2]
[319828795,1710982249055,-828.25,0.00024931,2]
[319828796,1710982249066,-500.0,0.00024931,2]
[319828797,1710982249079,-500.0,0.00024931,2]
[319828798,1710982249090,-500.0,0.00024931,2]
[319828799,1710982249106,-500.0,0.00024931,2]
[319828800,1710982249121,-500.0,0.00024931,2]
[319828801,1710982249133,-500.0,0.00024931,2]
[319828802,1710982249146,-500.0,0.00024931,2]
[319828803,1710982249159,-500.0,0.00024931,2]
[319828804,1710982249171,-114.22135344,0.00024931,2]
[319828805,1710982250254,-385.77864656,0.00024931,2]
[319828806,1710982250278,-500.0,0.00024931,2]
[319828807,1710982250288,-844.09,0.00024931,2]
[319828808,1710982250298,-500.0,0.00024931,2]
[319828809,1710982250307,-500.0,0.00024931,2]
[319828810,1710982250317,-500.0,0.00024931,2]
[319828811,1710982250330,-873.91,0.00024931,2]
[319828812,1710982250339,-500.0,0.00024931,2]
[319828813,1710982250348,-500.0,0.00024931,2]
[319828814,1710982250357,-896.5,0.00024931,2]
[319828815,1710982250366,-526.15,0.00024931,2]
[319828816,1710982250376,-500.0,0.00024931,2]
[319828817,1710982250385,-500.0,0.00024931,2]
[319828818,1710982250394,-500.0,0.00024931,2]
[319828819,1710982250404,-500.0,0.00024931,2]
[319828820,1710982250413,-500.0,0.00024931,2]
[319828821,1710982250423,-500.0,0.00024931,2]
[319828822,1710982250432,-526.68,0.00024931,2]
[319828823,1710982250443,-515.08,0.00024931,2]
[319828824,1710982250452,-500.0,0.00024931,2]
[319828825,1710982250461,-500.0,0.00024931,2]
[319828826,1710982250471,-500.0,0.00024931,2]
[319828827,1710982250481,-500.0,0.00024931,2]
[319828828,1710982250491,-500.0,0.00024931,2]
[319828829,1710982250500,-500.0,0.00024931,2]
[319828830,1710982250510,-500.0,0.00024931,2]
[319828831,1710982250520,-792.42,0.00024931,2]
[319828832,1710982250529,-633.83,0.00024931,2]
[319828833,1710982250538,-573.97,0.00024931,2]
[319828834,1710982250547,-500.0,0.00024931,2]
[319828835,1710982250556,-649.58,0.00024931,2]
[319828836,1710982250566,-722.77,0.00024931,2]
[319828837,1710982250577,-500.0,0.00024931,2]
[319828838,1710982250587,-631.55,0.00024931,2]
[319828839,1710982250597,-500.00827607,0.00024931,2]
[319828840,1710982250607,-579.68,0.00024931,2]
[319828841,1710982250618,-712.92,0.00024931,2]
[319828842,1710982250627,-554.61,0.00024931,2]
[319828843,1710982250637,-500.0,0.00024931,2]
[319828844,1710982250650,-500.0,0.00024931,2]
[319828845,1710982250659,-500.0,0.00024931,2]
[319828846,1710982250669,-820.01,0.00024931,2]
[319828847,1710982250678,-975.9,0.00024931,2]
[319828848,1710982250689,-500.0,0.00024931,2]
[319828849,1710982250699,-539.94,0.00024931,2]
[319828850,1710982250708,-500.0,0.00024931,2]
[319828851,1710982250718,-500.0,0.00024931,2]
[319828852,1710982250728,-500.0,0.00024931,2]
[319828853,1710982250737,-879.86,0.00024931,2]
[319828854,1710982250746,-500.0,0.00024931,2]
[319828855,1710982250755,-500.0,0.00024931,2]
[319828856,1710982250765,-690.64,0.00024931,2]
[319828857,1710982250774,-358.43611318,0.00024931,2]
[319828858,1710982250783,-723.92,0.00024931,2]
[319828859,1710982250792,-500.0,0.00024931,2]
[319828860,1710982250802,-500.0,0.00024931,2]
[319828861,1710982250812,-500.0,0.00024931,2]
[319828862,1710982250821,-1523.9,0.00024931,2]
[319828863,1710982250832,-303.37783947,0.00024931,2]
[319828864,1710982250841,-500.0,0.00024931,2]
[319828865,1710982250850,-500.0,0.00024931,2]
[319828866,1710982250858,-500.0,0.00024931,2]